[Event "Titled Tuesday Blitz June 27 Late 2023"]
[White "Garsky, Vladyslav"]
[Black "Hartikainen, Jarmo"]
[WhiteFideId "34100270"]
[BlackFideId "503134"]
[WhiteElo "2435"]
[BlackElo "2155"]
[Result "1-0"]
[Round "4"]
[TimeControl "180+2"]
[Date "2023.06.27"]
[WhiteClock "0:01:25"]
[BlackClock "0:00:00"]
[Board "165"]

1. e4 {[%clk 0:03:00]}  c5 {[%clk 0:02:59]} 2. c3 {[%clk 0:02:59]}  d5 {[%clk 0:02:59]} 3. exd5 {[%clk 0:02:59]}  Qxd5 {[%clk 0:02:59]} 4. d4 {[%clk 0:02:59]}  cxd4 {[%clk 0:02:59]} 5. cxd4 {[%clk 0:02:59]}  Nc6 {[%clk 0:02:59]} 6. Nf3 {[%clk 0:02:59]}  Bg4 {[%clk 0:02:59]} 7. Be2 {[%clk 0:02:59]}  e6 {[%clk 0:02:59]} 8. Nc3 {[%clk 0:02:59]}  Qa5 {[%clk 0:02:59]} 9. O-O {[%clk 0:02:59]}  Nf6 {[%clk 0:02:59]} 10. Be3 {[%clk 0:02:49]}  Be7 {[%clk 0:02:58]} 11. Qb3 {[%clk 0:02:48]}  Qb4 {[%clk 0:02:57]} 12. Rad1 {[%clk 0:02:37]}  O-O {[%clk 0:02:33]} 13. Ne5 {[%clk 0:02:31]}  Qxb3 {[%clk 0:02:14]} 14. axb3 {[%clk 0:02:30]}  Bxe2 {[%clk 0:02:00]} 15. Nxe2 {[%clk 0:02:26]}  Nxe5 {[%clk 0:01:49]} 16. dxe5 {[%clk 0:02:27]}  Nd5 {[%clk 0:01:49]} 17. Bd4 {[%clk 0:02:21]}  Rfc8 {[%clk 0:01:43]} 18. Nc3 {[%clk 0:02:16]}  Nf4 {[%clk 0:00:50]} 19. Rfe1 {[%clk 0:02:12]}  a6 {[%clk 0:00:49]} 20. g3 {[%clk 0:02:12]}  Ng6 {[%clk 0:00:48]} 21. h4 {[%clk 0:02:07]}  h5 {[%clk 0:00:48]} 22. Ne4 {[%clk 0:02:01]}  Rd8 {[%clk 0:00:39]} 23. Bb6 {[%clk 0:02:00]}  Rxd1 {[%clk 0:00:31]} 24. Rxd1 {[%clk 0:02:00]}  Nxe5 {[%clk 0:00:31]} 25. f4 {[%clk 0:02:00]}  Nc6 {[%clk 0:00:26]} 26. Rd7 {[%clk 0:01:58]}  f5 {[%clk 0:00:14]} 27. Ng5 {[%clk 0:01:41]}  Bd8 {[%clk 0:00:09]} 28. Rxb7 {[%clk 0:01:36]}  Bxb6+ {[%clk 0:00:08]} 29. Rxb6 {[%clk 0:01:37]}  Nd4 {[%clk 0:00:08]} 30. Rd6 {[%clk 0:01:34]}  Nxb3 {[%clk 0:00:07]} 31. Nxe6 {[%clk 0:01:34]}  a5 {[%clk 0:00:07]} 32. Rd7 {[%clk 0:01:33]}  a4 {[%clk 0:00:07]} 33. Rxg7+ {[%clk 0:01:33]}  Kh8 {[%clk 0:00:07]} 34. Rg5 {[%clk 0:01:34]}  a3 {[%clk 0:00:07]} 35. Rxh5+ {[%clk 0:01:34]}  Kg8 {[%clk 0:00:07]} 36. bxa3 {[%clk 0:01:34]}  Rxa3 {[%clk 0:00:06]} 37. Rxf5 {[%clk 0:01:35]}  Nd2 {[%clk 0:00:05]} 38. Rg5+ {[%clk 0:01:28]}  Kf7 {[%clk 0:00:00]} 39. Nd4 {[%clk 0:01:25]} 1-0


[Site "https://www.chess.com"]

[Event "Titled Tuesday Blitz June 27 Late 2023"]
[White "Arias Igual, Alejandro"]
[Black "Petersson, Kjell"]
[WhiteFideId "2254905"]
[BlackFideId "1705148"]
[WhiteElo "2352"]
[BlackElo "2108"]
[Result "0-1"]
[Round "4"]
[TimeControl "180+2"]
[Date "2023.06.27"]
[WhiteClock "0:00:19"]
[BlackClock "0:00:58"]
[Board "169"]

1. d4 {[%clk 0:03:00]}  f5 {[%clk 0:02:59]} 2. e4 {[%clk 0:03:01]}  fxe4 {[%clk 0:02:58]} 3. Nc3 {[%clk 0:02:59]}  Nf6 {[%clk 0:02:59]} 4. f3 {[%clk 0:02:58]}  d5 {[%clk 0:02:57]} 5. fxe4 {[%clk 0:02:56]}  dxe4 {[%clk 0:02:54]} 6. Bg5 {[%clk 0:02:53]}  Bf5 {[%clk 0:02:53]} 7. Qd2 {[%clk 0:02:48]}  e6 {[%clk 0:02:53]} 8. O-O-O {[%clk 0:02:46]}  Be7 {[%clk 0:02:52]} 9. Kb1 {[%clk 0:02:42]}  O-O {[%clk 0:02:51]} 10. Nge2 {[%clk 0:02:41]}  Nd5 {[%clk 0:02:48]} 11. Bxe7 {[%clk 0:02:38]}  Qxe7 {[%clk 0:02:48]} 12. Ng3 {[%clk 0:02:35]}  Nxc3+ {[%clk 0:02:47]} 13. Qxc3 {[%clk 0:02:34]}  Nc6 {[%clk 0:02:47]} 14. Bc4 {[%clk 0:02:15]}  Kh8 {[%clk 0:02:42]} 15. a3 {[%clk 0:02:10]}  a5 {[%clk 0:02:33]} 16. Rhe1 {[%clk 0:02:10]}  Qh4 {[%clk 0:02:26]} 17. Qb3 {[%clk 0:01:42]}  Nd8 {[%clk 0:02:06]} 18. Rh1 {[%clk 0:01:23]}  c6 {[%clk 0:02:04]} 19. a4 {[%clk 0:01:21]}  b5 {[%clk 0:02:01]} 20. axb5 {[%clk 0:01:20]}  cxb5 {[%clk 0:02:02]} 21. Qxb5 {[%clk 0:01:19]}  Nf7 {[%clk 0:01:56]} 22. d5 {[%clk 0:01:06]}  Nd6 {[%clk 0:01:55]} 23. Qc6 {[%clk 0:01:00]}  Nxc4 {[%clk 0:01:50]} 24. Qxc4 {[%clk 0:01:01]}  Rfc8 {[%clk 0:01:50]} 25. Qd4 {[%clk 0:00:55]}  Bg6 {[%clk 0:01:46]} 26. d6 {[%clk 0:00:48]}  Rxc2 {[%clk 0:01:36]} 27. Kxc2 {[%clk 0:00:40]}  e3+ {[%clk 0:01:36]} 28. Kc1 {[%clk 0:00:40]}  Rc8+ {[%clk 0:01:33]} 29. Qc3 {[%clk 0:00:38]}  Rxc3+ {[%clk 0:01:31]} 30. bxc3 {[%clk 0:00:39]}  Qc4 {[%clk 0:01:26]} 31. Kb2 {[%clk 0:00:34]}  Qb5+ {[%clk 0:01:24]} 32. Ka1 {[%clk 0:00:31]}  Qa4+ {[%clk 0:01:23]} 33. Kb2 {[%clk 0:00:29]}  Qc2+ {[%clk 0:01:23]} 34. Ka3 {[%clk 0:00:29]}  Qxc3+ {[%clk 0:01:23]} 35. Ka2 {[%clk 0:00:28]}  Qc4+ {[%clk 0:01:20]} 36. Ka3 {[%clk 0:00:27]}  Qb4+ {[%clk 0:01:21]} 37. Ka2 {[%clk 0:00:27]}  a4 {[%clk 0:00:59]} 38. d7 {[%clk 0:00:19]}  Qc4+ {[%clk 0:00:58]} 39. Ka1 {[%clk 0:00:19]}  Qc3+ {[%clk 0:00:57]} 40. Ka2 {[%clk 0:00:19]}  Qb3+ {[%clk 0:00:58]} 41. Ka1 {[%clk 0:00:19]}  Qa3# {[%clk 0:00:58]} 0-1


[Site "https://www.chess.com"]

[Event "Titled Tuesday Blitz June 27 Late 2023"]
[White "Gyulamiryan-koryun"]
[Black "Roman, Rodrigo"]
[BlackFideId "3701220"]
[WhiteElo "2090"]
[BlackElo "2340"]
[Result "0-1"]
[Round "4"]
[TimeControl "180+2"]
[Date "2023.06.27"]
[WhiteClock "0:00:00"]
[BlackClock "0:00:34"]
[Board "170"]

1. e4 {[%clk 0:02:54]}  e5 {[%clk 0:02:55]} 2. Nc3 {[%clk 0:02:53]}  Nf6 {[%clk 0:02:51]} 3. Bc4 {[%clk 0:02:53]}  Nxe4 {[%clk 0:02:48]} 4. Bxf7+ {[%clk 0:02:50]}  Kxf7 {[%clk 0:02:47]} 5. Nxe4 {[%clk 0:02:50]}  d5 {[%clk 0:02:47]} 6. Qh5+ {[%clk 0:02:45]}  Kg8 {[%clk 0:02:35]} 7. Ng5 {[%clk 0:02:26]}  Qf6 {[%clk 0:02:27]} 8. N1f3 {[%clk 0:02:07]}  Nc6 {[%clk 0:02:22]} 9. d4 {[%clk 0:02:06]}  h6 {[%clk 0:02:11]} 10. Nh3 {[%clk 0:01:36]}  Nxd4 {[%clk 0:01:34]} 11. Nxd4 {[%clk 0:01:34]}  exd4 {[%clk 0:01:34]} 12. Qxd5+ {[%clk 0:01:31]}  Be6 {[%clk 0:01:34]} 13. Qxb7 {[%clk 0:01:30]}  Re8 {[%clk 0:01:34]} 14. O-O {[%clk 0:01:27]}  Bxh3 {[%clk 0:01:28]} 15. gxh3 {[%clk 0:01:27]}  Bd6 {[%clk 0:01:28]} 16. Qd5+ {[%clk 0:01:24]}  Kh7 {[%clk 0:01:26]} 17. f4 {[%clk 0:01:07]}  Re2 {[%clk 0:01:20]} 18. c4 {[%clk 0:00:44]}  Qg6+ {[%clk 0:00:56]} 19. Kh1 {[%clk 0:00:43]}  Qc2 {[%clk 0:00:54]} 20. c5 {[%clk 0:00:20]}  Bxc5 {[%clk 0:00:47]} 21. b4 {[%clk 0:00:12]}  Bb6 {[%clk 0:00:37]} 22. Ba3 {[%clk 0:00:07]}  Rxh2+ {[%clk 0:00:34]} 23. Kg1 {[%clk 0:00:00]}  d3+ {[%clk 0:00:34]} 0-1


[Site "https://www.chess.com"]

[Event "Titled Tuesday Blitz June 27 Late 2023"]
[White "Sloan, Julia Elizabeth"]
[Black "Bullen, Alex"]
[WhiteFideId "2018950"]
[BlackFideId "1801627"]
[WhiteElo "2072"]
[BlackElo "2282"]
[Result "1/2-1/2"]
[Round "4"]
[TimeControl "180+2"]
[Date "2023.06.27"]
[WhiteClock "0:00:48"]
[BlackClock "0:00:04"]
[Board "174"]

1. d4 {[%clk 0:03:00]}  Nf6 {[%clk 0:02:57]} 2. c4 {[%clk 0:03:00]}  e6 {[%clk 0:02:58]} 3. Nf3 {[%clk 0:02:58]}  d5 {[%clk 0:02:58]} 4. g3 {[%clk 0:02:57]}  Bb4+ {[%clk 0:02:56]} 5. Bd2 {[%clk 0:02:57]}  Be7 {[%clk 0:02:57]} 6. Bg2 {[%clk 0:02:53]}  O-O {[%clk 0:02:57]} 7. O-O {[%clk 0:02:51]}  Nbd7 {[%clk 0:02:58]} 8. Bg5 {[%clk 0:02:51]}  c6 {[%clk 0:02:56]} 9. Nc3 {[%clk 0:02:49]}  h6 {[%clk 0:02:56]} 10. Bxf6 {[%clk 0:02:47]}  Nxf6 {[%clk 0:02:57]} 11. Ne5 {[%clk 0:02:47]}  Qc7 {[%clk 0:02:50]} 12. e4 {[%clk 0:02:47]}  dxe4 {[%clk 0:02:48]} 13. Nxe4 {[%clk 0:02:46]}  Nxe4 {[%clk 0:02:48]} 14. Bxe4 {[%clk 0:02:46]}  Bf6 {[%clk 0:02:46]} 15. f4 {[%clk 0:02:45]}  c5 {[%clk 0:02:45]} 16. Kh1 {[%clk 0:02:40]}  Rb8 {[%clk 0:02:38]} 17. Bc2 {[%clk 0:02:36]}  b6 {[%clk 0:02:26]} 18. Re1 {[%clk 0:02:35]}  Bb7+ {[%clk 0:02:24]} 19. d5 {[%clk 0:02:33]}  exd5 {[%clk 0:02:20]} 20. cxd5 {[%clk 0:02:33]}  Rbd8 {[%clk 0:02:14]} 21. Qd3 {[%clk 0:02:32]}  g6 {[%clk 0:00:56]} 22. Bb3 {[%clk 0:02:30]}  b5 {[%clk 0:00:36]} 23. Qxb5 {[%clk 0:02:29]}  Bxd5+ {[%clk 0:00:31]} 24. Bxd5 {[%clk 0:02:28]}  Rxd5 {[%clk 0:00:32]} 25. Rac1 {[%clk 0:02:11]}  Bxe5 {[%clk 0:00:32]} 26. fxe5 {[%clk 0:02:10]}  Rxe5 {[%clk 0:00:31]} 27. Rxe5 {[%clk 0:02:08]}  Qxe5 {[%clk 0:00:32]} 28. Rxc5 {[%clk 0:02:06]}  Qe1+ {[%clk 0:00:29]} 29. Kg2 {[%clk 0:02:05]}  Qd2+ {[%clk 0:00:29]} 30. Kf1 {[%clk 0:02:03]}  Qd1+ {[%clk 0:00:27]} 31. Kf2 {[%clk 0:02:01]}  Rd8 {[%clk 0:00:26]} 32. Re5 {[%clk 0:01:56]}  Rd2+ {[%clk 0:00:25]} 33. Re2 {[%clk 0:01:55]}  Rxe2+ {[%clk 0:00:22]} 34. Qxe2 {[%clk 0:01:54]}  Qd4+ {[%clk 0:00:22]} 35. Kg2 {[%clk 0:01:49]}  h5 {[%clk 0:00:22]} 36. a3 {[%clk 0:01:48]}  Qd5+ {[%clk 0:00:21]} 37. Kf2 {[%clk 0:01:47]}  a5 {[%clk 0:00:21]} 38. h4 {[%clk 0:01:39]}  Qd4+ {[%clk 0:00:21]} 39. Kg2 {[%clk 0:01:38]}  a4 {[%clk 0:00:19]} 40. Qc2 {[%clk 0:01:37]}  Kh7 {[%clk 0:00:18]} 41. Kh3 {[%clk 0:01:32]}  Qd7+ {[%clk 0:00:17]} 42. Kh2 {[%clk 0:01:29]}  Qb5 {[%clk 0:00:18]} 43. Qf2 {[%clk 0:01:23]}  Kg8 {[%clk 0:00:18]} 44. Qc2 {[%clk 0:01:21]}  Qd7 {[%clk 0:00:17]} 45. Qf2 {[%clk 0:01:20]}  Qe6 {[%clk 0:00:16]} 46. Qc2 {[%clk 0:01:19]}  Qe8 {[%clk 0:00:13]} 47. Qf2 {[%clk 0:01:18]}  Qe4 {[%clk 0:00:13]} 48. Kg1 {[%clk 0:01:14]}  Kg7 {[%clk 0:00:12]} 49. Kh2 {[%clk 0:01:14]}  Kh7 {[%clk 0:00:13]} 50. Kg1 {[%clk 0:01:15]}  Kg7 {[%clk 0:00:13]} 51. Kh2 {[%clk 0:01:15]}  f6 {[%clk 0:00:13]} 52. Kg1 {[%clk 0:01:13]}  Kh6 {[%clk 0:00:13]} 53. Qd2+ {[%clk 0:01:12]}  Kh7 {[%clk 0:00:12]} 54. Qd7+ {[%clk 0:01:11]}  Kh6 {[%clk 0:00:13]} 55. Qd2+ {[%clk 0:01:07]}  g5 {[%clk 0:00:13]} 56. hxg5+ {[%clk 0:01:06]}  fxg5 {[%clk 0:00:14]} 57. Qd6+ {[%clk 0:01:05]}  Kg7 {[%clk 0:00:13]} 58. Qd7+ {[%clk 0:01:05]}  Kg6 {[%clk 0:00:14]} 59. Qd6+ {[%clk 0:01:04]}  Kf5 {[%clk 0:00:13]} 60. Qd7+ {[%clk 0:01:03]}  Ke5 {[%clk 0:00:13]} 61. Qe7+ {[%clk 0:01:03]}  Kd4 {[%clk 0:00:13]} 62. Qxg5 {[%clk 0:01:00]}  Qe1+ {[%clk 0:00:12]} 63. Kh2 {[%clk 0:00:59]}  Qf2+ {[%clk 0:00:12]} 64. Kh3 {[%clk 0:00:59]}  Qxb2 {[%clk 0:00:12]} 65. Qxh5 {[%clk 0:01:00]}  Qxa3 {[%clk 0:00:12]} 66. Qg4+ {[%clk 0:01:00]}  Kc5 {[%clk 0:00:12]} 67. Qf5+ {[%clk 0:01:00]}  Kb6 {[%clk 0:00:12]} 68. Qe6+ {[%clk 0:01:00]}  Ka5 {[%clk 0:00:11]} 69. Qd5+ {[%clk 0:01:00]}  Ka6 {[%clk 0:00:11]} 70. Qc6+ {[%clk 0:00:59]}  Ka7 {[%clk 0:00:11]} 71. Qc7+ {[%clk 0:00:59]}  Ka6 {[%clk 0:00:11]} 72. Qc6+ {[%clk 0:01:00]}  Ka5 {[%clk 0:00:11]} 73. Qd5+ {[%clk 0:01:00]}  Kb4 {[%clk 0:00:11]} 74. Qd6+ {[%clk 0:01:00]}  Kb3 {[%clk 0:00:11]} 75. Qd3+ {[%clk 0:01:00]}  Kb2 {[%clk 0:00:11]} 76. Qd2+ {[%clk 0:01:00]}  Ka1 {[%clk 0:00:12]} 77. Qd1+ {[%clk 0:00:58]}  Ka2 {[%clk 0:00:12]} 78. Qc2+ {[%clk 0:00:57]}  Ka1 {[%clk 0:00:12]} 79. Qd1+ {[%clk 0:00:57]}  Kb2 {[%clk 0:00:12]} 80. Qd2+ {[%clk 0:00:56]}  Kb1 {[%clk 0:00:13]} 81. Qd1+ {[%clk 0:00:56]}  Qc1 {[%clk 0:00:13]} 82. Qxa4 {[%clk 0:00:56]}  Qc8+ {[%clk 0:00:11]} 83. g4 {[%clk 0:00:56]}  Qc3+ {[%clk 0:00:11]} 84. Kh4 {[%clk 0:00:55]}  Qh8+ {[%clk 0:00:11]} 85. Kg3 {[%clk 0:00:55]}  Qc3+ {[%clk 0:00:11]} 86. Kf4 {[%clk 0:00:56]}  Qf6+ {[%clk 0:00:11]} 87. Ke3 {[%clk 0:00:54]}  Qg5+ {[%clk 0:00:09]} 88. Qf4 {[%clk 0:00:54]}  Qc5+ {[%clk 0:00:09]} 89. Kf3 {[%clk 0:00:53]}  Qc3+ {[%clk 0:00:08]} 90. Ke4 {[%clk 0:00:52]}  Qc4+ {[%clk 0:00:07]} 91. Kf5 {[%clk 0:00:52]}  Qf7+ {[%clk 0:00:07]} 92. Ke4 {[%clk 0:00:51]}  Qc4+ {[%clk 0:00:07]} 93. Kf5 {[%clk 0:00:50]}  Qf7+ {[%clk 0:00:07]} 94. Kg5 {[%clk 0:00:49]}  Qg7+ {[%clk 0:00:07]} 95. Kh5 {[%clk 0:00:49]}  Qh7+ {[%clk 0:00:07]} 96. Qh6 {[%clk 0:00:49]}  Qe7 {[%clk 0:00:06]} 97. g5 {[%clk 0:00:48]}  Qe2+ {[%clk 0:00:06]} 98. Kg6 {[%clk 0:00:48]}  Qe6+ {[%clk 0:00:06]} 99. Kh7 {[%clk 0:00:48]}  Qe7+ {[%clk 0:00:06]} 100. Qg7 {[%clk 0:00:48]}  Qe4+ {[%clk 0:00:05]} 101. Qg6 {[%clk 0:00:48]}  Qc2 {[%clk 0:00:04]} 102. Qxc2+ {[%clk 0:00:47]}  Ka1 {[%clk 0:00:04]} 103. g6 {[%clk 0:00:48]} 1/2-1/2


[Site "https://www.chess.com"]

[Event "Titled Tuesday Blitz June 27 Late 2023"]
[White "Ward, Ieuan C"]
[Black "Allam, Yara"]
[WhiteFideId "406627"]
[BlackFideId "10615709"]
[WhiteElo "2278"]
[BlackElo "2064"]
[Result "1/2-1/2"]
[Round "4"]
[TimeControl "180+2"]
[Date "2023.06.27"]
[WhiteClock "0:01:10"]
[BlackClock "0:01:13"]
[Board "175"]

1. e4 {[%clk 0:03:00]}  c5 {[%clk 0:02:59]} 2. Nf3 {[%clk 0:03:01]}  e6 {[%clk 0:03:00]} 3. d4 {[%clk 0:03:01]}  cxd4 {[%clk 0:03:00]} 4. c3 {[%clk 0:03:02]}  Nf6 {[%clk 0:03:00]} 5. e5 {[%clk 0:03:01]}  Nd5 {[%clk 0:03:00]} 6. cxd4 {[%clk 0:03:02]}  d6 {[%clk 0:03:01]} 7. Nc3 {[%clk 0:03:00]}  Nc6 {[%clk 0:03:01]} 8. Bb5 {[%clk 0:02:53]}  Bd7 {[%clk 0:02:59]} 9. O-O {[%clk 0:02:50]}  dxe5 {[%clk 0:02:58]} 10. Bxc6 {[%clk 0:02:48]}  Bxc6 {[%clk 0:02:56]} 11. Nxe5 {[%clk 0:02:48]}  Qc7 {[%clk 0:02:48]} 12. Nxc6 {[%clk 0:02:39]}  Qxc6 {[%clk 0:02:48]} 13. Nxd5 {[%clk 0:02:28]}  Qxd5 {[%clk 0:02:43]} 14. Qa4+ {[%clk 0:02:27]}  Qd7 {[%clk 0:02:43]} 15. Qxd7+ {[%clk 0:02:27]}  Kxd7 {[%clk 0:02:43]} 16. Bf4 {[%clk 0:02:27]}  Bd6 {[%clk 0:02:38]} 17. Bg5 {[%clk 0:02:24]}  Rhc8 {[%clk 0:02:30]} 18. Rac1 {[%clk 0:02:23]}  Rc7 {[%clk 0:02:22]} 19. Rxc7+ {[%clk 0:02:22]}  Bxc7 {[%clk 0:02:22]} 20. g3 {[%clk 0:02:20]}  Bb6 {[%clk 0:02:21]} 21. Rd1 {[%clk 0:02:19]}  Rc8 {[%clk 0:02:13]} 22. d5 {[%clk 0:02:18]}  Rc2 {[%clk 0:02:08]} 23. dxe6+ {[%clk 0:02:18]}  Kxe6 {[%clk 0:02:08]} 24. Rd2 {[%clk 0:02:19]}  Rxd2 {[%clk 0:02:04]} 25. Bxd2 {[%clk 0:02:20]}  Kd5 {[%clk 0:02:02]} 26. Kf1 {[%clk 0:02:19]}  g6 {[%clk 0:02:02]} 27. Ke2 {[%clk 0:02:19]}  Ke4 {[%clk 0:02:02]} 28. f3+ {[%clk 0:02:19]}  Kf5 {[%clk 0:02:01]} 29. Kd3 {[%clk 0:02:18]}  h5 {[%clk 0:01:59]} 30. b4 {[%clk 0:02:10]}  Bg1 {[%clk 0:01:56]} 31. h3 {[%clk 0:02:08]}  Bh2 {[%clk 0:01:56]} 32. g4+ {[%clk 0:02:08]}  hxg4 {[%clk 0:01:55]} 33. fxg4+ {[%clk 0:02:04]}  Ke5 {[%clk 0:01:52]} 34. Be3 {[%clk 0:01:55]}  a6 {[%clk 0:01:49]} 35. h4 {[%clk 0:01:54]}  Bf4 {[%clk 0:01:33]} 36. h5 {[%clk 0:01:31]}  gxh5 {[%clk 0:01:21]} 37. gxh5 {[%clk 0:01:32]}  Bxe3 {[%clk 0:01:13]} 38. Kxe3 {[%clk 0:01:33]}  Kf5 {[%clk 0:01:13]} 39. Kd4 {[%clk 0:01:31]}  Kg5 {[%clk 0:01:13]} 40. Ke5 {[%clk 0:01:26]}  Kxh5 {[%clk 0:01:12]} 41. Kf6 {[%clk 0:01:26]}  Kg4 {[%clk 0:01:12]} 42. Kxf7 {[%clk 0:01:26]}  Kf4 {[%clk 0:01:12]} 43. Ke6 {[%clk 0:01:26]}  Ke4 {[%clk 0:01:13]} 44. Kd6 {[%clk 0:01:26]}  Kd4 {[%clk 0:01:14]} 45. Kc7 {[%clk 0:01:25]}  Kc4 {[%clk 0:01:14]} 46. a3 {[%clk 0:01:10]}  Kb3 {[%clk 0:01:14]} 47. Kxb7 {[%clk 0:01:10]}  Kxa3 {[%clk 0:01:13]} 48. Kxa6 {[%clk 0:01:10]}  Kxb4 {[%clk 0:01:13]} 1/2-1/2


[Site "https://www.chess.com"]

[Event "Titled Tuesday Blitz June 27 Late 2023"]
[White "Kostiukov, Alexandr"]
[Black "Alberto, Manuel"]
[WhiteFideId "14108100"]
[BlackFideId "10100148"]
[WhiteElo "2277"]
[BlackElo "2004"]
[Result "1-0"]
[Round "4"]
[TimeControl "180+2"]
[Date "2023.06.27"]
[WhiteClock "0:00:05"]
[BlackClock "0:00:23"]
[Board "176"]

1. e4 {[%clk 0:03:00]}  c5 {[%clk 0:02:58]} 2. Nf3 {[%clk 0:03:00]}  d6 {[%clk 0:02:58]} 3. d4 {[%clk 0:03:00]}  cxd4 {[%clk 0:02:58]} 4. Nxd4 {[%clk 0:03:01]}  Nf6 {[%clk 0:02:58]} 5. Nc3 {[%clk 0:03:01]}  a6 {[%clk 0:02:58]} 6. Be2 {[%clk 0:02:58]}  e5 {[%clk 0:02:57]} 7. Nb3 {[%clk 0:02:55]}  Be6 {[%clk 0:02:56]} 8. Rg1 {[%clk 0:02:54]}  h5 {[%clk 0:02:54]} 9. Bg5 {[%clk 0:02:53]}  Nbd7 {[%clk 0:02:53]} 10. Qd2 {[%clk 0:02:44]}  Rc8 {[%clk 0:02:48]} 11. O-O-O {[%clk 0:02:43]}  Be7 {[%clk 0:02:47]} 12. Kb1 {[%clk 0:02:41]}  b5 {[%clk 0:02:46]} 13. Bxf6 {[%clk 0:02:39]}  Nxf6 {[%clk 0:02:45]} 14. Nd5 {[%clk 0:02:37]}  Nxe4 {[%clk 0:02:41]} 15. Qe3 {[%clk 0:02:23]}  Bxd5 {[%clk 0:02:40]} 16. Rxd5 {[%clk 0:02:22]}  Nf6 {[%clk 0:02:40]} 17. Rdd1 {[%clk 0:02:14]}  Qc7 {[%clk 0:02:38]} 18. c3 {[%clk 0:02:03]}  O-O {[%clk 0:02:36]} 19. g4 {[%clk 0:02:00]}  hxg4 {[%clk 0:02:35]} 20. Bxg4 {[%clk 0:02:01]}  Nxg4 {[%clk 0:02:34]} 21. Rxg4 {[%clk 0:02:02]}  Rfd8 {[%clk 0:02:26]} 22. Qh6 {[%clk 0:01:53]}  g6 {[%clk 0:02:25]} 23. Rdg1 {[%clk 0:01:48]}  Bf8 {[%clk 0:02:25]} 24. Qd2 {[%clk 0:01:37]}  Bg7 {[%clk 0:02:22]} 25. h4 {[%clk 0:01:36]}  d5 {[%clk 0:02:12]} 26. h5 {[%clk 0:01:35]}  Rd6 {[%clk 0:02:11]} 27. hxg6 {[%clk 0:01:34]}  fxg6 {[%clk 0:02:11]} 28. Rxg6 {[%clk 0:01:35]}  Rxg6 {[%clk 0:02:10]} 29. Rxg6 {[%clk 0:01:36]}  Qf7 {[%clk 0:02:10]} 30. Rxa6 {[%clk 0:01:23]}  d4 {[%clk 0:02:07]} 31. Rd6 {[%clk 0:00:52]}  dxc3 {[%clk 0:02:04]} 32. bxc3 {[%clk 0:00:45]}  Qf5+ {[%clk 0:02:03]} 33. Kb2 {[%clk 0:00:41]}  e4 {[%clk 0:02:00]} 34. Rd8+ {[%clk 0:00:35]}  Rxd8 {[%clk 0:01:58]} 35. Qxd8+ {[%clk 0:00:36]}  Kh7 {[%clk 0:01:59]} 36. Qh4+ {[%clk 0:00:33]}  Kg6 {[%clk 0:01:56]} 37. Nd4 {[%clk 0:00:30]}  Qd5 {[%clk 0:01:49]} 38. Qg4+ {[%clk 0:00:25]}  Kf7 {[%clk 0:01:43]} 39. Qf5+ {[%clk 0:00:24]}  Qxf5 {[%clk 0:01:41]} 40. Nxf5 {[%clk 0:00:25]}  Be5 {[%clk 0:01:40]} 41. Kb3 {[%clk 0:00:17]}  Ke6 {[%clk 0:01:39]} 42. Nd4+ {[%clk 0:00:16]}  Bxd4 {[%clk 0:01:37]} 43. cxd4 {[%clk 0:00:17]}  Kd5 {[%clk 0:01:38]} 44. Kc3 {[%clk 0:00:13]}  b4+ {[%clk 0:01:37]} 45. Kxb4 {[%clk 0:00:13]}  Kxd4 {[%clk 0:01:37]} 46. a4 {[%clk 0:00:06]}  Kd3 {[%clk 0:01:37]} 47. a5 {[%clk 0:00:07]}  Ke2 {[%clk 0:01:36]} 48. a6 {[%clk 0:00:07]}  Kxf2 {[%clk 0:01:36]} 49. a7 {[%clk 0:00:08]}  e3 {[%clk 0:01:35]} 50. a8=Q {[%clk 0:00:08]}  e2 {[%clk 0:01:34]} 51. Qf8+ {[%clk 0:00:07]}  Ke3 {[%clk 0:01:33]} 52. Qe7+ {[%clk 0:00:07]}  Kd2 {[%clk 0:01:32]} 53. Qd6+ {[%clk 0:00:07]}  Kc2 {[%clk 0:01:32]} 54. Qe5 {[%clk 0:00:06]}  Kd2 {[%clk 0:01:31]} 55. Qd4+ {[%clk 0:00:06]}  Kc2 {[%clk 0:01:30]} 56. Qe4+ {[%clk 0:00:05]}  Kd2 {[%clk 0:01:29]} 57. Qg2 {[%clk 0:00:05]}  Kd1 {[%clk 0:01:27]} 58. Qf3 {[%clk 0:00:03]}  Kd2 {[%clk 0:01:16]} 59. Qc3+ {[%clk 0:00:04]}  Kd1 {[%clk 0:01:16]} 60. Qa1+ {[%clk 0:00:03]}  Kd2 {[%clk 0:01:15]} 61. Qb2+ {[%clk 0:00:03]}  Kd1 {[%clk 0:01:13]} 62. Qb1+ {[%clk 0:00:04]}  Kd2 {[%clk 0:01:12]} 63. Qb2+ {[%clk 0:00:03]}  Kd1 {[%clk 0:01:12]} 64. Qd4+ {[%clk 0:00:03]}  Kc2 {[%clk 0:01:11]} 65. Qc3+ {[%clk 0:00:03]}  Kd1 {[%clk 0:01:09]} 66. Qd3+ {[%clk 0:00:03]}  Ke1 {[%clk 0:01:08]} 67. Kc3 {[%clk 0:00:03]}  Kf2 {[%clk 0:01:08]} 68. Qf5+ {[%clk 0:00:03]}  Ke3 {[%clk 0:01:06]} 69. Qe5+ {[%clk 0:00:03]}  Kf2 {[%clk 0:01:06]} 70. Kd2 {[%clk 0:00:03]}  e1=Q+ {[%clk 0:00:55]} 71. Qxe1+ {[%clk 0:00:03]}  Kf3 {[%clk 0:00:55]} 72. Kd3 {[%clk 0:00:04]}  Kf4 {[%clk 0:00:54]} 73. Qe4+ {[%clk 0:00:04]}  Kg5 {[%clk 0:00:53]} 74. Qf3 {[%clk 0:00:04]}  Kg6 {[%clk 0:00:53]} 75. Qf4 {[%clk 0:00:04]}  Kg7 {[%clk 0:00:52]} 76. Qf5 {[%clk 0:00:04]}  Kg8 {[%clk 0:00:47]} 77. Qd7 {[%clk 0:00:04]}  Kf8 {[%clk 0:00:23]} 78. Ke4 {[%clk 0:00:05]} 1-0


[Site "https://www.chess.com"]